bitfinex-derivatives/quotes_ETHF0:USTF0_20251024
["timestamp","ask_amount","ask_price","bid_price","bid_amount"]
[1761345111524,8.605,3943.0,3942.9,0.7774]
[1761345123029,8.7356,3943.0,3942.9,0.7774]
[1761345123230,8.7356,3943.0,3942.9,0.2126]
[1761345124133,8.7356,3943.0,3942.9,0.5397]
[1761345124533,8.7356,3943.0,3942.9,0.7588]
[1761345125631,8.605,3943.0,3942.9,0.7588]
[1761345129932,8.605,3943.0,3942.9,3.9666]
[1761345134841,8.7379,3943.0,3942.9,3.9666]
[1761345135742,8.7379,3943.0,3942.9,0.7588]
[1761345135942,8.7379,3943.0,3942.9,3.9666]
[1761345137143,8.7379,3943.0,3942.9,3.6395]
[1761345137345,8.7379,3943.0,3942.9,3.4204]
[1761345139047,8.7379,3943.0,3942.9,3.7484]
[1761345140247,8.7379,3943.0,3942.9,4.43336136]
[1761345140546,8.7379,3943.0,3942.9,4.66746136]
[1761345144351,8.7379,3943.0,3942.9,1.45966136]
[1761345144556,8.7379,3943.0,3942.9,4.66746136]
[1761345146656,8.7379,3943.0,3942.9,1.45966136]
[1761345146955,8.7379,3943.0,3942.9,3.9825]
[1761345147751,8.7379,3943.0,3942.9,0.7747]
[1761345148056,8.7379,3943.0,3942.9,3.9825]
[1761345149756,0.789,3943.0,3942.9,3.9825]
[1761345149954,0.5729,3943.0,3942.9,3.9825]
[1761345150153,0.7722,3943.4,3943.3,0.7886]
[1761345150354,0.7722,3943.4,3943.3,4.67940644]
[1761345151661,0.7722,3943.4,3943.3,5.13581644]
[1761345154158,0.7722,3943.4,3943.3,4.45281]
[1761345158365,0.7722,3943.4,3943.3,1.24501]
[1761345158555,0.7722,3943.4,3943.3,4.45281]
[1761345163257,0.7722,3943.4,3943.3,1.24501]
[1761345163457,0.7722,3943.4,3943.3,4.45281]
[1761345163959,0.45022607,3943.7,3943.6,1.20527]
[1761345164363,0.76982607,3943.7,3943.6,1.20527]
[1761345169670,0.55652607,3943.7,3943.6,1.20527]
[1761345173672,0.76982607,3943.7,3943.6,1.20527]
[1761345176274,0.76982607,3943.7,3943.6,5.09607644]
[1761345180785,0.76982607,3943.7,3943.6,1.88827644]
[1761345180986,0.76982607,3943.7,3943.6,5.09607644]
[1761345182083,0.76982607,3943.7,3943.6,4.34717644]
[1761345182283,0.3278,3943.3,3942.7,0.68300644]
[1761345182484,0.911,3942.5,3942.4,3.89080644]
[1761345183078,0.911,3942.5,3942.4,3.2078]
[1761345183679,0.911,3942.5,3942.3,1.25260644]
[1761345183680,0.7779,3942.4,3942.3,1.25260644]
[1761345184178,0.7779,3942.4,3942.3,0.5696]
[1761345187189,0.7779,3942.4,3942.3,0.796]
[1761345192280,0.5463,3942.4,3942.3,0.796]
[1761345192481,0.4475,3942.9,3942.8,0.5472]
[1761345192683,5.0825,3942.9,3942.8,0.5472]
[1761345193083,5.4257,3942.9,3942.8,0.5472]
[1761345193693,0.7907,3942.9,3942.8,0.5472]
[1761345193995,7.2467,3942.9,3942.8,0.7661]
[1761345196396,0.7907,3942.9,3942.8,0.7661]
[1761345196590,0.7907,3942.9,3942.8,0.4427]
[1761345196795,0.3432,3942.8,3942.7,0.45648]
[1761345197095,0.7907,3942.8,3942.7,0.45648]
[1761345198594,0.2196,3942.6,3942.5,0.2238]
[1761345198794,0.7907,3942.6,3942.5,0.2238]
[1761345199496,0.7907,3942.6,3942.5,0.68029]
[1761345199900,0.7907,3942.6,3942.5,0.2238]
[1761345202185,0.4777,3942.5,3942.2,3.755]
[1761345202390,0.7907,3942.3,3942.2,3.4316]
[1761345205794,0.7907,3942.3,3942.2,3.755]
[1761345207303,0.5628,3942.3,3942.2,3.9739]
[1761345209201,0.5628,3942.3,3942.2,4.65690644]
[1761345209803,0.5628,3942.3,3942.2,3.9739]
[1761345209998,0.4475,3942.6,3942.5,0.8992]
[1761345210204,0.7907,3942.6,3942.5,1.2226]
[1761345210999,0.5628,3942.6,3942.5,1.3498]
[1761345213996,0.5628,3942.6,3942.5,2.03374611]
[1761345214507,0.5628,3942.6,3942.5,1.3498]
[1761345215809,0.7907,3942.6,3942.5,1.2226]
[1761345224517,0.7907,3942.6,3942.5,4.4304]
[1761345225825,0.7907,3942.6,3942.5,1.2226]
[1761345226226,0.7907,3942.6,3942.5,4.4304]
[1761345240044,0.7907,3942.6,3942.5,1.2226]
[1761345240340,0.7907,3942.6,3942.5,4.4304]
[1761345240541,0.3432,3942.6,3942.5,4.5613]
[1761345241042,0.5648,3942.6,3942.5,4.5613]
[1761345241239,0.5648,3942.6,3942.5,4.4304]
[1761345241445,0.7904,3942.6,3942.5,4.4304]
[1761345242743,0.7904,3942.6,3942.5,5.34107526]
[1761345243235,0.3396,3942.8,3942.5,4.79997526]
[1761345243437,0.3396,3942.7,3942.6,0.68486027]
[1761345243638,0.7868,3942.7,3942.6,0.68486027]
[1761345243839,1.35941186,3942.7,3942.5,3.89266027]
[1761345244041,0.7868,3942.6,3942.5,3.2078]
[1761345244239,0.6987,3942.5,3942.4,0.68486027]
[1761345244439,0.4472,3942.3,3942.2,0.68486027]
[1761345244645,0.7868,3942.3,3942.2,0.68486027]
[1761345245242,0.7868,3942.3,3942.2,0.90986027]
[1761345245549,0.7868,3942.3,3942.2,0.5605]
[1761345248359,0.2126,3942.1,3942.0,0.68486027]
[1761345248654,0.7776,3941.9,3941.8,0.00291483]
[1761345259167,0.7776,3941.9,3941.8,0.56551483]
[1761345259353,9.6796,3941.9,3941.8,0.56551483]
[1761345259554,9.6796,3941.9,3941.8,0.78361483]
[1761345259757,9.6796,3941.9,3941.8,1.24019483]
[1761345259758,0.7776,3941.9,3941.8,1.24019483]
[1761345262666,0.7776,3942.3,3942.2,0.7807]
[1761345264369,0.554,3942.3,3942.2,0.7807]
[1761345270964,0.554,3942.3,3942.2,3.9885]
[1761345273467,0.7776,3942.7,3942.6,0.7807]
[1761345278668,9.6786,3942.7,3942.6,0.7807]
[1761345279076,0.7776,3942.7,3942.6,0.7807]
[1761345279474,8.6726,3942.7,3942.6,0.7807]
[1761345280670,8.6726,3942.7,3942.6,0.2124]
[1761345280873,9.6786,3942.7,3942.6,0.2124]
[1761345283276,0.7776,3942.7,3942.6,0.7956]
[1761345283479,9.6786,3942.7,3942.6,0.4445]
[1761345284379,9.6786,3942.7,3942.6,0.7956]
[1761345291278,0.7776,3942.7,3942.6,0.7956]
[1761345291484,9.6776,3942.7,3942.6,0.7956]
[1761345293987,1.27133644,3943.0,3942.6,0.4445]
[1761345294190,0.5447,3942.9,3942.8,1.48746092]
[1761345296395,0.5447,3942.9,3942.8,0.8031]
[1761345299199,0.5447,3942.9,3942.8,1.48746092]
[1761345299395,0.5447,3942.9,3942.8,0.8031]
[1761345299396,0.3183,3942.9,3942.8,0.8031]
[1761345300399,0.5323,3942.9,3942.8,0.8031]
[1761345300805,0.5323,3942.9,3942.8,4.0109]
[1761345301500,0.754,3942.9,3942.8,4.69472941]
[1761345302399,0.754,3942.9,3942.8,4.0109]
[1761345302600,0.754,3942.9,3942.8,4.69465502]
[1761345303703,0.1331,3943.5,3942.8,4.0109]
[1761345303898,0.7549,3943.4,3943.3,0.7833]
[1761345304099,9.6539,3943.4,3943.3,0.7833]
[1761345309602,9.6539,3943.4,3943.3,0.4565]
[1761345310001,9.6539,3943.4,3943.3,0.2291]
[1761345312511,9.6539,3943.4,3943.3,0.7653]
[1761345315209,9.6539,3943.4,3943.3,0.2291]
[1761345318421,0.7906,3943.3,3943.2,4.20922]
[1761345319915,0.7906,3943.3,3943.2,3.7528]
[1761345320915,0.7906,3943.3,3943.2,0.545]
[1761345324918,0.7906,3943.3,3943.2,0.2228]
[1761345325113,0.3393,3943.2,3943.1,4.34792496]
[1761345325319,0.7906,3943.2,3943.1,4.89292496]
[1761345325620,0.7906,3943.2,3943.1,5.10692496]
[1761345326213,0.7906,3943.2,3943.1,5.10757326]
[1761345327415,0.7906,3943.2,3943.1,4.65114326]
[1761345327617,0.7906,3943.2,3943.1,3.9668]
[1761345328523,0.7906,3943.2,3943.1,4.65114326]
[1761345328719,0.7906,3943.2,3943.1,0.68434326]
[1761345328915,0.2314,3942.7,3942.6,0.68434326]
[1761345329117,0.3393,3942.4,3942.3,3.89214326]
[1761345329322,0.7906,3942.4,3942.3,3.89214326]
[1761345330223,0.7906,3942.4,3942.3,3.2078]
[1761345331530,0.7906,3942.4,3942.3,0.2228]
[1761345332025,0.7906,3942.4,3942.2,0.68434326]
[1761345332026,0.3393,3942.3,3942.2,0.68434326]
[1761345332223,0.4513,3942.2,3942.0,0.68434326]
[1761345332422,0.7906,3942.1,3942.0,0.68434326]
[1761345333123,0.7906,3942.1,3942.0,0.2228]
[1761345333631,0.7906,3942.1,3942.0,0.545]
[1761345334026,0.7906,3942.1,3942.0,0.2228]
[1761345334622,0.5879,3942.0,3941.8,4.11785809]
[1761345334827,0.7906,3941.9,3941.8,4.11785809]
[1761345335025,0.7906,3941.9,3941.8,3.21071483]
[1761345335229,9.6896,3941.9,3941.8,3.21071483]
[1761345342525,9.6896,3941.9,3941.8,0.00291483]
[1761345348736,9.6896,3941.9,3941.8,0.22041483]
[1761345349632,9.6896,3941.9,3941.8,0.56911483]
[1761345351938,9.6896,3941.9,3941.8,0.22041483]
[1761345352833,9.6896,3941.9,3941.8,0.00291483]
[1761345369149,10.60083703,3941.9,3941.8,0.00291483]
[1761345374153,9.6896,3941.9,3941.8,0.00291483]
[1761345386177,0.7833,3941.3,3941.2,0.68434326]
[1761345386376,0.1353,3941.0,3940.9,0.68434326]
[1761345386579,0.7833,3940.9,3940.8,0.68434326]
[1761345387375,0.78571399,3940.9,3940.8,0.6862345]
[1761345388880,0.78571399,3940.9,3940.8,0.9121345]
[1761345389277,0.78571399,3940.9,3940.8,1.2567345]
[1761345390479,0.78571399,3940.9,3940.8,1.4717345]
[1761345390681,0.78571399,3940.9,3940.8,0.00189124]
[1761345418489,0.2273,3940.4,3940.3,0.68409211]
[1761345418692,9.6827,3940.4,3940.3,0.68409211]
[1761345419498,9.6827,3940.4,3940.3,0.68676368]
[1761345420399,9.6827,3940.4,3940.3,0.00267157]
[1761345421393,10.59351861,3940.4,3940.3,0.00267157]
[1761345421597,9.6827,3940.4,3940.3,0.00267157]
[1761345423007,11.05101779,3940.4,3940.3,0.00267157]
[1761345423211,9.6827,3940.4,3940.3,0.00267157]
[1761345423506,0.9168,3939.5,3939.4,1.25879211]
[1761345423695,9.8208,3939.5,3939.4,1.25879211]
[1761345423891,0.1381,3940.0,3939.8,0.45681]
[1761345424094,7.5931,3939.9,3939.8,0.89771]
[1761345424399,7.258,3939.9,3939.8,0.90041464]
[1761345424597,7.258,3939.9,3939.8,1.24771464]
[1761345425005,7.5931,3939.9,3939.8,1.24771464]
[1761345425301,7.8204,3939.9,3939.8,1.24771464]
[1761345430907,7.8204,3939.9,3939.8,4.45551464]
[1761345432107,8.04,3939.9,3939.8,4.45551464]
[1761345432704,8.04,3939.9,3939.8,1.24771464]
[1761345433006,8.04,3939.9,3939.8,4.45551464]
[1761345434806,8.04,3939.9,3939.8,3.21050464]
[1761345437315,8.04,3939.9,3939.8,0.00270464]
[1761345447516,8.04,3939.9,3939.8,0.56560464]
[1761345447914,8.04,3939.9,3939.8,0.00270464]
[1761345456021,8.04,3939.9,3939.8,0.56560464]
[1761345456225,0.782,3939.9,3939.8,0.79200464]
[1761345456430,9.688,3939.9,3939.8,0.79200464]
[1761345458421,9.688,3939.9,3939.8,0.00270464]
[1761345460321,11.05631779,3939.9,3939.8,0.00270464]
[1761345462421,0.9392,3939.0,3938.9,0.68479945]
[1761345462622,9.8472,3939.0,3938.9,0.68479945]
[1761345463424,9.8472,3939.0,3938.9,0.68722454]
[1761345463826,9.8472,3939.0,3938.9,1.22352454]
[1761345464928,9.8472,3939.0,3938.9,1.44122534]
[1761345467129,9.8472,3939.0,3938.9,0.75662509]
[1761345472033,9.8472,3939.0,3938.9,3.96442509]
[1761345473034,9.8472,3939.0,3938.9,0.75662509]
[1761345473230,9.8472,3939.0,3938.9,3.96442509]
[1761345473734,9.8472,3939.0,3938.9,0.75662509]
[1761345473935,9.8472,3939.0,3938.9,3.96442509]
[1761345475930,9.8472,3939.0,3938.9,0.75662509]
[1761345476138,9.8472,3939.0,3938.9,3.96442509]
[1761345477534,9.8472,3939.0,3938.9,3.64612509]
[1761345477938,9.8472,3939.0,3938.9,3.42822509]
[1761345482036,9.8472,3939.0,3938.9,3.99692509]
[1761345482538,9.2483,3939.0,3938.9,4.68152534]
[1761345482734,9.4681,3939.0,3938.9,4.68152534]
[1761345483440,9.2483,3939.0,3938.9,4.68152534]
[1761345483838,8.908,3939.0,3938.9,4.68152534]
[1761345484146,9.2483,3939.0,3938.9,3.99692509]
[1761345484447,9.4681,3939.0,3938.9,3.99692509]
[1761345489150,9.4681,3939.0,3938.9,4.90760035]
[1761345491748,1.04220038,3939.5,3938.9,4.90760035]
[1761345491945,0.802,3939.4,3939.3,0.90656]
[1761345492346,0.802,3939.4,3939.3,0.2166]
[1761345492847,0.802,3939.3,3939.1,1.14210803]
[1761345493048,0.802,3939.2,3939.1,0.68521803]
[1761345495858,0.343,3939.1,3939.0,0.68521803]
[1761345496061,0.802,3939.1,3939.0,0.68521803]
[1761345502367,0.802,3939.1,3938.9,3.21022509]
[1761345502368,0.4817,3939.0,3938.9,3.21022509]
[1761345502571,0.9407,3939.0,3938.9,3.42682509]
[1761345504075,0.9407,3939.0,3938.9,3.74922509]
[1761345506166,0.9407,3939.0,3938.9,3.98232509]
[1761345506468,0.9407,3939.0,3938.9,3.21022509]
[1761345506774,0.9407,3939.0,3938.9,3.89553862]
[1761345507161,0.9407,3939.0,3938.9,3.21022509]
[1761345510568,0.9407,3939.0,3938.9,3.74922509]
[1761345511978,0.9407,3939.0,3938.9,3.21022509]
[1761345512781,0.9407,3939.0,3938.9,3.42682509]
[1761345512977,0.9407,3939.0,3938.9,0.54142509]
[1761345513883,0.9407,3939.0,3938.9,0.77452509]
[1761345517168,0.802,3939.0,3938.9,3.98232509]
[1761345517574,0.573,3939.0,3938.9,3.98232509]
[1761345518377,0.573,3939.0,3938.9,4.89300035]
[1761345518581,0.573,3939.0,3938.9,3.98232509]
[1761345519081,0.3218,3939.1,3939.0,0.45691]
[1761345519384,9.6977,3939.4,3939.3,0.4643]
[1761345519885,9.6977,3939.4,3939.3,0.7878]
[1761345520286,0.7877,3939.4,3939.3,0.7878]
[1761345527891,0.3218,3939.3,3939.2,3.98818]
[1761345528085,0.3218,3939.3,3939.2,4.22218]
[1761345528290,0.7877,3939.3,3939.2,4.45248]
[1761345540612,0.7877,3939.3,3939.2,3.9956]
[1761345542913,0.7877,3939.3,3939.2,3.2078]
[1761345543615,0.7877,3939.3,3939.2,3.4342]
[1761345543817,0.7877,3939.3,3939.2,3.7594]
[1761345545309,0.7877,3939.3,3939.2,3.9813]
[1761345547117,0.7877,3939.3,3939.2,4.66624411]
[1761345548117,9.6957,3939.3,3939.2,4.66624411]
[1761345551617,1.12710038,3939.5,3939.4,0.7491]
[1761345551923,10.03510038,3939.5,3939.4,0.7491]
[1761345552116,10.25730038,3939.5,3939.4,0.7491]
[1761345552317,10.59590038,3939.5,3939.4,0.7491]
[1761345556417,10.72470038,3939.5,3939.4,0.7491]
[1761345561129,10.37470038,3939.5,3939.4,0.7491]
[1761345561532,10.59690038,3939.5,3939.4,0.7491]
[1761345561724,9.6846,3939.5,3939.4,0.7491]
[1761345561926,10.59690038,3939.5,3939.4,0.7491]
[1761345563834,10.72570038,3939.5,3939.4,0.7491]
[1761345567137,1.81670038,3939.5,3939.4,0.7491]
[1761345567329,10.72470038,3939.5,3939.4,0.7491]
[1761345567734,9.8124,3939.5,3939.4,0.7491]
[1761345567944,0.3386,3940.0,3939.9,0.7491]
[1761345568235,0.437,3940.2,3940.1,0.7491]
[1761345568637,0.7756,3940.2,3940.1,0.7491]
[1761345579543,0.7756,3940.2,3940.1,3.9569]
[1761345592849,0.7756,3940.2,3940.1,3.2078]
[1761345593043,0.4568,3939.8,3939.6,0.68467336]
[1761345593354,0.9357,3939.5,3939.4,3.7813]
[1761345594150,0.9357,3939.5,3939.4,4.46597336]
[1761345595755,0.9357,3939.5,3939.4,1.25817336]
[1761345596554,0.9357,3939.5,3939.4,1.47747336]
[1761345597158,0.9357,3939.5,3939.4,0.7928]
[1761345598158,0.9357,3939.5,3939.4,1.47744826]
[1761345600856,0.7977,3939.5,3939.4,1.47744826]
[1761345601161,0.5754,3939.5,3939.4,1.47744826]
[1761345602258,0.5422,3939.9,3939.8,0.7896]
[1761345602457,9.682,3939.9,3939.8,0.7896]
[1761345606161,0.5422,3939.9,3939.8,0.7896]
[1761345606462,9.4482,3939.9,3939.8,0.7896]
[1761345607557,8.906,3939.9,3939.8,0.7896]
[1761345608250,0.5394,3940.1,3940.0,0.7755]
[1761345608556,9.4454,3940.1,3940.0,0.7755]
[1761345608757,0.5394,3940.1,3940.0,0.7755]
[1761345608956,8.1294,3940.1,3940.0,0.7755]
[1761345609258,8.3568,3940.1,3940.0,0.7755]
[1761345614564,8.3568,3940.1,3940.0,0.4398]
[1761345614764,8.3568,3940.1,3940.0,0.2278]
[1761345615064,8.3568,3940.1,3940.0,0.5635]
[1761345615269,8.3568,3940.1,3940.0,0.7755]
[1761345616752,0.7668,3940.1,3940.0,0.7755]
[1761345619261,0.1381,3940.5,3940.1,1.23228]
[1761345619453,1.35720038,3940.7,3940.5,0.3357]
[1761345619766,0.4449,3940.7,3940.5,0.5635]
[1761345620062,0.7668,3940.6,3940.5,0.5635]
[1761345620464,0.7668,3940.6,3940.5,0.2278]
[1761345620671,0.7668,3940.4,3940.3,0.2278]
[1761345620970,0.7668,3940.4,3940.3,0.5635]
[1761345621570,0.7668,3940.4,3940.3,0.2278]
[1761345622666,0.7668,3940.4,3940.3,0.5635]
[1761345623164,0.7668,3940.4,3940.3,0.2278]
[1761345624475,0.7668,3940.4,3940.2,3.66456]
[1761345624772,0.1366,3940.5,3940.2,3.66456]
[1761345624773,0.7668,3940.3,3940.2,3.66456]
[1761345624969,0.7668,3940.3,3940.2,3.89236]
[1761345625675,0.7668,3940.3,3940.2,4.22806]
[1761345625867,0.7668,3940.3,3940.2,3.4356]
[1761345628073,0.7668,3940.3,3940.2,3.2078]
[1761345628770,0.7668,3940.3,3939.8,0.91375373]
[1761345628771,0.7668,3939.9,3939.8,1.24796654]
[1761345628962,0.7668,3939.9,3939.8,0.5635]
[1761345629366,0.7668,3939.9,3939.8,0.7755]
[1761345629971,0.7668,3939.9,3939.8,1.45964349]
[1761345634272,0.7668,3939.9,3939.8,0.7755]
[1761345639077,0.7668,3939.9,3939.8,3.9833]
[1761345639576,0.7668,3939.9,3939.8,3.6476]
[1761345640266,0.7668,3939.9,3939.8,3.9829]
[1761345645474,0.7668,3939.9,3939.8,3.6476]
[1761345645782,0.7668,3939.9,3939.8,3.9829]
[1761345649488,0.7668,3939.9,3939.8,0.7751]
[1761345649784,0.7668,3939.9,3939.8,3.9829]
[1761345650292,0.7668,3939.9,3939.8,4.89665373]
[1761345654494,0.5394,3939.9,3939.8,4.89665373]
[1761345655686,0.5613,3940.1,3940.0,0.7865]
[1761345655892,0.7766,3940.1,3940.0,1.47163713]
[1761345657783,0.7766,3940.1,3940.0,0.91033713]
[1761345658895,0.7766,3940.1,3940.0,0.5573]
[1761345659488,0.7766,3940.1,3940.0,0.7869]
[1761345662999,0.7766,3940.1,3940.0,0.4548]
[1761345663495,0.7766,3940.1,3939.9,0.91375373]
[1761345663691,0.9075,3940.0,3939.9,1.14805373]
[1761345664093,0.9075,3940.0,3939.9,1.48015373]
[1761345664295,0.4531,3939.9,3939.7,0.91375373]
[1761345664495,0.7786,3939.7,3939.6,0.68523965]
[1761345664696,8.905,3939.8,3939.4,3.5399]
[1761345664697,0.7786,3939.6,3939.5,1.25163965]
[1761345665094,0.7786,3939.6,3939.5,1.48123965]
[1761345667303,0.7786,3939.6,3939.5,0.796]
[1761345668500,0.8925,3939.5,3939.3,0.68523965]
[1761345668799,0.8925,3939.0,3938.9,0.56792509]
[1761345669003,9.7975,3939.0,3938.9,0.21672509]
[1761345671498,9.7975,3939.0,3938.9,0.00242509]
[1761345673807,9.6648,3939.0,3938.9,0.79162509]
[1761345674703,9.8005,3939.0,3938.9,0.79162509]
[1761345676106,9.8005,3939.0,3938.9,0.21672509]
[1761345677911,9.8005,3939.0,3938.9,0.00242509]
[1761345690118,13.0083,3939.0,3938.9,0.00242509]
[1761345693422,13.91900584,3939.0,3938.9,0.00242509]
[1761345694120,0.8925,3939.0,3938.9,0.56792509]
[1761345694423,0.8925,3939.0,3938.9,0.21672509]
[1761345694725,9.1725,3939.0,3938.9,0.21672509]
[1761345698327,10.08320584,3939.0,3938.9,0.21672509]
[1761345698822,10.08320584,3939.0,3938.9,0.77912509]
[1761345699023,10.08320584,3939.0,3938.9,0.44182509]
[1761345699225,10.08320584,3939.0,3938.9,0.21672509]
[1761345702125,10.08320584,3939.0,3938.9,0.55402509]
[1761345703027,10.08320584,3939.0,3938.9,0.21672509]
[1761345703720,10.08320584,3939.0,3938.9,0.55402509]
[1761345704325,10.08320584,3939.0,3938.9,0.21672509]
[1761345707322,10.71220584,3939.0,3938.9,0.77912509]
[1761345713640,10.71220584,3939.0,3938.9,0.44182509]
[1761345714239,10.71220584,3939.0,3938.9,0.21672509]
[1761345714632,10.71220584,3939.0,3938.9,0.00242509]
[1761345719841,1.80320584,3939.0,3938.9,0.58022509]
[1761345720045,9.8015,3939.0,3938.9,1.2653873]
[1761345724554,9.8015,3939.0,3938.9,0.9164873]
[1761345727348,9.8015,3939.0,3938.9,0.23132509]
[1761345730154,0.7568,3939.0,3938.9,0.79362509]
[1761345730348,6.093,3939.0,3938.9,1.4787873]
[1761345730747,5.7663,3939.0,3938.9,0.79362509]
[1761345731549,6.09,3939.0,3938.9,0.79362509]
[1761345733853,5.7663,3939.0,3938.9,0.79362509]
[1761345734853,0.2143,3939.0,3938.9,0.79362509]
[1761345735058,0.5457,3939.2,3939.1,0.7824]
[1761345735262,0.1357,3939.5,3939.1,4.67456207]
[1761345735558,0.3237,3939.4,3939.3,0.7824]
[1761345736055,0.5457,3939.4,3939.3,0.7824]
[1761345736256,0.5457,3939.4,3939.3,1.46649767]
[1761345740559,0.7649,3939.4,3939.3,1.46649767]
[1761345740755,0.4412,3939.4,3939.2,0.45688]
[1761345740947,0.1298,3939.5,3939.2,0.45688]
[1761345740948,0.7649,3939.3,3939.2,0.45688]
[1761345741861,0.7649,3939.3,3939.2,0.67698]
[1761345742462,0.7649,3939.3,3939.2,1.02038]
[1761345744365,0.7649,3939.3,3939.2,1.24759767]
[1761345746166,0.7649,3939.3,3939.2,0.68409767]
[1761345746470,0.3237,3939.2,3939.1,4.34878767]
[1761345746661,0.3237,3939.2,3939.0,3.2078]
[1761345746662,0.3237,3939.1,3939.0,3.2078]
[1761345746866,0.7649,3939.1,3939.0,3.2078]
[1761345747570,0.8947,3939.0,3938.9,0.67943509]
[1761345747772,0.8947,3939.0,3938.9,3.88723509]
[1761345748865,0.8947,3939.0,3938.9,4.23063509]
[1761345749061,0.8947,3939.0,3938.9,3.43032509]
[1761345749376,0.8947,3939.0,3938.9,3.21022509]
[1761345750472,0.8947,3939.0,3938.9,0.00242509]
[1761345750675,1.80540584,3939.0,3938.9,0.00242509]
[1761345751269,0.8947,3939.0,3938.9,0.00242509]
[1761345758973,9.8067,3939.0,3938.9,0.00242509]
[1761345774295,10.71740584,3939.0,3938.9,0.00242509]
[1761345776393,9.8067,3939.0,3938.9,0.00242509]
[1761345779299,11.17515058,3939.0,3938.9,0.00242509]
[1761345784000,11.17515058,3939.0,3938.4,3.89176115]
[1761345784293,1.80450009,3938.5,3938.4,3.2078]
[1761345784506,10.71350009,3938.5,3938.4,3.2078]
[1761345785000,10.71350009,3938.5,3938.4,3.21017805]
[1761345785392,9.8021,3938.5,3938.4,3.21017805]
[1761345786901,9.8021,3938.5,3938.4,0.00237805]
[1761345787795,9.8021,3938.5,3938.4,0.57817805]
[1761345796208,9.8021,3938.5,3938.4,0.23087805]
[1761345801509,9.8021,3938.5,3938.4,0.00237805]
[1761345809317,9.8021,3938.5,3938.4,0.56727805]
[1761345809812,9.8021,3938.5,3938.4,0.21997805]
[1761345810517,9.8021,3938.5,3938.4,0.00237805]
[1761345812321,10.71350009,3938.5,3938.4,0.00237805]
[1761345820435,10.71350009,3938.5,3938.4,0.21997805]
[1761345820629,10.71350009,3938.5,3938.4,0.00237805]
[1761345842349,10.71350009,3938.5,3938.4,0.23697805]
[1761345842741,10.71350009,3938.5,3938.4,0.58487805]
[1761345842937,10.71350009,3938.5,3938.4,0.23697805]
[1761345843143,10.71350009,3938.5,3938.4,0.00237805]
[1761345851254,0.8931,3938.5,3938.4,0.80397805]
[1761345851458,9.8021,3938.5,3938.4,0.80397805]
[1761345853561,9.8021,3938.5,3938.4,1.48924451]
[1761345855861,9.8021,3938.5,3938.4,0.68764451]
[1761345859263,9.8021,3938.5,3938.4,0.00237805]
[1761345872970,9.8021,3938.5,3938.4,0.22967805]
[1761345873473,9.8021,3938.5,3938.4,0.57037805]
[1761345873769,9.8021,3938.5,3938.4,0.22967805]
[1761345875871,9.8021,3938.5,3938.4,0.57037805]
[1761345879267,9.8021,3938.5,3938.4,0.00237805]
[1761345882169,9.8021,3938.5,3938.4,3.21017805]
[1761345884881,9.8021,3938.5,3938.4,0.00237805]
[1761345885082,9.8021,3938.5,3938.4,3.21017805]
[1761345887396,9.8021,3938.5,3938.4,0.00237805]
[1761345887594,9.8021,3938.5,3938.4,3.21017805]
[1761345889197,9.8021,3938.5,3938.4,3.89531286]
[1761345890391,9.8021,3938.5,3938.4,3.21017805]
[1761345890696,9.8021,3938.5,3938.4,3.89570251]
[1761345892397,9.8021,3938.5,3938.4,4.11840251]
[1761345896096,9.8021,3938.5,3938.4,3.89570251]
[1761345898698,9.8021,3938.5,3938.4,3.89567605]
[1761345899100,9.8021,3938.5,3938.4,4.46507605]
[1761345899300,9.8001,3938.5,3938.4,4.46507605]
[1761345902492,9.8001,3938.5,3938.4,4.68377605]
[1761345902797,9.6622,3938.5,3938.4,4.68377605]
[1761345902997,0.5431,3938.5,3938.4,4.68377605]
[1761345903198,0.91140009,3938.8,3938.4,4.68377605]
[1761345903199,1.14460009,3939.2,3939.1,1.24259]
[1761345903401,9.3563,3939.2,3939.1,1.24259]
[1761345903793,9.3563,3939.2,3939.1,1.92782821]
[1761345904196,9.3563,3939.2,3939.1,1.24259]
[1761345905097,9.7017,3939.2,3939.1,1.92782821]
[1761345906202,9.7017,3939.2,3939.1,1.24259]
[1761345916015,9.7017,3939.2,3939.1,4.45039]
[1761345919417,9.7017,3939.2,3939.1,3.9935]
[1761345921220,9.7017,3939.2,3939.1,0.7857]
[1761345921419,9.7017,3939.2,3939.1,3.9935]
[1761345921622,9.7017,3939.2,3939.1,3.2078]
[1761345921916,0.2239,3938.8,3938.7,3.2078]
[1761345922119,0.7686,3938.8,3938.7,3.2078]
[1761345922420,0.9046,3938.5,3938.4,0.00237805]
[1761345929323,0.9046,3938.5,3938.4,0.34597805]
[1761345930615,0.9046,3938.5,3938.4,0.00237805]
[1761345936425,0.9046,3938.5,3938.4,0.34597805]
[1761345937820,0.9046,3938.5,3938.4,0.00237805]
[1761345941730,0.9046,3938.5,3938.4,0.35387805]
[1761345942826,0.9046,3938.5,3938.4,0.00237805]
[1761345952243,0.7686,3938.5,3938.4,0.35387805]
[1761345954949,0.7686,3938.5,3938.4,0.58747805]
[1761345955945,0.7686,3938.5,3938.4,0.35387805]
[1761345956145,0.9046,3938.5,3938.4,0.35387805]
[1761345958556,0.9046,3938.5,3938.4,0.00237805]
[1761345960950,0.7686,3938.5,3938.4,0.57777805]
[1761345964762,0.7686,3938.5,3938.4,0.34587805]
[1761345969060,0.8979,3938.5,3938.4,0.34587805]
[1761345969261,0.8979,3938.5,3938.4,0.00237805]
[1761345971763,0.8979,3938.5,3938.4,0.33037805]
[1761345973466,0.8979,3938.5,3938.4,0.00237805]
[1761345976571,0.8979,3938.5,3938.4,0.33037805]
[1761345986880,0.7686,3938.5,3938.4,0.56457805]
[1761345989079,0.91140009,3938.8,3938.7,0.45694]
[1761345989381,9.1322,3939.0,3938.9,0.792]
[1761345989584,9.4804,3939.0,3938.9,0.792]
[1761345989781,9.7088,3939.0,3938.9,0.792]